fUST/lending_fUST_20240918
["ID","MTS","AMOUNT","RATE_DAILY","PERIOD"]
[338423562,1726627870874,-295.200798,0.00019726,2]
[338423563,1726627870883,-500.0,0.00019726,2]
[338423564,1726627870894,-295.200798,0.00019726,2]
[338423565,1726627870904,-1681.1,0.00019726,2]
[338423566,1726627870914,-620.21,0.00019726,2]
[338423567,1726627870924,-295.200798,0.00019726,2]
[338423568,1726627870935,-295.200798,0.00019726,2]
[338423569,1726627870945,-295.200798,0.00019726,2]
[338423570,1726627870955,-555.92,0.00019726,2]
[338423571,1726627870964,-500.0,0.00019726,2]
[338423572,1726627870974,-1115.85,0.00019726,2]
[338423573,1726627870983,-367.56954865,0.00019726,2]
[338423574,1726627870993,-1411.05,0.00019726,2]
[338423575,1726627871003,-843.53,0.00019726,2]
[338423576,1726627871012,-500.0,0.00019726,2]
[338423577,1726627871022,-500.0,0.00019726,2]
[338423578,1726627871032,-1095.75,0.00019726,2]
[338423579,1726627871046,-831.56531,0.00019726,2]
[338423580,1726627871060,-500.0,0.00019726,2]
[338423581,1726627871069,-831.56531,0.00019726,2]
[338423582,1726627871078,-325.45375061,0.00019726,2]
[338423583,1726627878098,500.0,0.00024,120]
[338423800,1726629040713,-159.7315944,0.00015852,2]
[338423801,1726629040725,-2948.8026218,0.00015888,2]
[338423803,1726629040739,-250.0,0.00016477,2]
[338423805,1726629040748,-250.0,0.00016522,2]
[338423807,1726629040760,-250.0,0.00016567,2]
[338423809,1726629040770,-250.0,0.00016613,2]
[338423811,1726629040780,-250.0,0.00016658,2]
[338423812,1726629040790,-353.7192555,0.00016697,2]
[338423813,1726629040800,-250.0,0.00016703,2]
[338423814,1726629040812,-250.0,0.00016748,2]
[338423815,1726629040822,-250.0,0.00016793,2]
[338423816,1726629040831,-250.0,0.00016839,2]
[338423817,1726629040840,-250.0,0.00016884,2]
[338423818,1726629040851,-300.0,0.00016926,2]
[338423819,1726629040860,-300.0,0.00016926,2]
[338423820,1726629040869,-24900.0,0.00016927,2]
[338423821,1726629040879,-250.0,0.00016929,2]
[338423822,1726629040889,-250.0,0.00016974,2]
[338423823,1726629040899,-250.0,0.00017019,2]
[338423824,1726629040909,-494.2741883,0.00017058,2]
[338423825,1726629040919,-250.0,0.00017064,2]
[338423826,1726629040929,-250.0,0.0001711,2]
[338423827,1726629040938,-250.0,0.00017155,2]
[338423828,1726629040948,-250.0,0.000172,2]
[338423829,1726629040958,-250.0,0.00017245,2]
[338423830,1726629040967,-250.0,0.0001729,2]
[338423831,1726629040979,-250.0,0.00017335,2]
[338423832,1726629040990,-420.0,0.00018489,2]
[338423833,1726629040999,-420.0,0.00018619,2]
[338423834,1726629041009,-12435.042154,0.00019138,3]
[338423835,1726629041019,-502.71389276,0.00019148,2]
[338423836,1726629041029,-514.38,0.00019148,3]
[338423837,1726629041038,-257.19,0.00019148,3]
[338423838,1726629041051,-771.59,0.00019148,3]
[338423839,1726629041060,-58030.1967186,0.00019158,3]
[338423840,1726629041070,-12435.042154,0.00019168,3]
[338423841,1726629041080,-500.0,0.00019173,2]
[338423842,1726629041091,-500.0,0.00019173,2]
[338423843,1726629041100,-500.76551568,0.00019173,2]
[338423844,1726629041110,-360.07202762,0.00019173,2]
[338423845,1726629041119,-500.0,0.00019173,2]
[338423846,1726629041129,-500.0,0.00019173,2]
[338423847,1726629041138,-504.20016458,0.00019173,2]
[338423848,1726629041149,-500.0,0.00019173,2]
[338423849,1726629041159,-1441.30764285,0.00019177,2]
[338423850,1726629041169,-465.85730613,0.00019177,2]
[338423851,1726629041179,-500.0,0.00019177,2]
[338423852,1726629041189,-520.52400766,0.00019177,2]
[338423853,1726629041200,-500.0,0.00019177,2]
[338423854,1726629041210,-220.37099575,0.00019177,2]
[338423855,1726629041220,-500.0,0.00019177,2]
[338423856,1726629041229,-531.00859329,0.00019177,2]
[338423857,1726629041239,-500.0,0.00019177,2]
[338423858,1726629041250,-500.0,0.00019177,2]
[338423859,1726629041259,-500.0,0.00019177,2]
[338423860,1726629041269,-500.0,0.00019177,2]
[338423861,1726629041278,-500.0,0.00019177,2]
[338423862,1726629041289,-586.8446584,0.00019177,2]
[338423863,1726629041299,-500.0,0.00019177,2]
[338423864,1726629041308,-500.0,0.00019177,2]
[338423865,1726629041318,-500.0,0.00019177,2]
[338423866,1726629041329,-600.0,0.00019177,2]
[338423867,1726629041339,-500.0,0.00019177,2]
[338423868,1726629041348,-10032.67884088,0.00019178,5]
[338423869,1726629041358,-502.02459352,0.00019178,2]
[338423871,1726629041377,-500.0,0.00019178,2]
[338423873,1726629041390,-500.0,0.00019178,2]
[338423874,1726629041400,-500.0,0.00019178,2]
[338423875,1726629041409,-1000.0,0.00019178,2]
[338423876,1726629041419,-1065.91,0.00019178,2]
[338423878,1726629041429,-500.0,0.00019178,2]
[338423880,1726629041440,-500.0,0.00019178,2]
[338423883,1726629041451,-500.0,0.00019178,2]
[338423885,1726629041461,-154.29237224,0.00019178,2]
[338423887,1726629041472,-500.0,0.00019178,2]
[338423889,1726629041482,-500.0,0.00019178,2]
[338423891,1726629041493,-500.0,0.00019178,2]
[338423893,1726629041503,-501.00014693,0.00019178,2]
[338423895,1726629041513,-500.0,0.00019178,2]
[338423897,1726629041524,-500.82107924,0.00019178,2]
[338423899,1726629041534,-500.0,0.00019178,2]
[338423901,1726629041544,-500.0,0.00019178,2]
[338423903,1726629041554,-500.0,0.00019178,2]
[338423905,1726629041564,-500.0,0.00019178,2]
[338423907,1726629041574,-500.0,0.00019178,2]
[338423909,1726629041585,-500.0,0.00019178,2]
[338423911,1726629041595,-500.0,0.00019178,2]
[338423913,1726629041605,-500.0,0.00019178,2]
[338423915,1726629041615,-500.0,0.00019178,2]
[338423917,1726629041625,-500.0,0.00019178,2]
[338423919,1726629041635,-500.0,0.00019178,2]
[338423921,1726629041644,-500.0,0.00019178,2]
[338423923,1726629041654,-500.0,0.00019178,2]
[338423926,1726629041665,-500.0,0.00019178,2]
[338423928,1726629041675,-480.5328709,0.00019178,2]
[338423930,1726629041685,-500.0,0.00019178,2]
[338423932,1726629041695,-1295.03,0.00019178,2]
[338423934,1726629041705,-500.0,0.00019178,2]
[338423936,1726629041715,-500.0,0.00019178,2]
[338423938,1726629041725,-646.07,0.00019178,2]
[338423940,1726629041738,-1560.13,0.00019178,2]
[338423942,1726629041748,-500.0,0.00019178,2]
[338423944,1726629041759,-261.40377493,0.00019178,2]
[338423946,1726629041769,-2401.71,0.00019178,2]
[338423948,1726629041778,-511.71130499,0.00019178,2]
[338423950,1726629041789,-500.0,0.00019178,2]
[338423952,1726629041801,-500.0,0.00019178,2]
[338423954,1726629041813,-500.0,0.00019178,2]
[338423956,1726629041823,-500.0,0.00019178,2]
[338423958,1726629041832,-500.0,0.00019178,2]
[338423960,1726629041842,-500.0,0.00019178,2]
[338423962,1726629041852,-500.0,0.00019178,2]
[338423964,1726629041862,-500.0,0.00019178,2]
[338423967,1726629041872,-500.0,0.00019178,2]
[338423969,1726629041882,-500.98752862,0.00019178,2]
[338423971,1726629041891,-508.55647824,0.00019178,2]
[338423973,1726629041901,-500.0,0.00019178,2]
[338423975,1726629041911,-500.0,0.00019178,2]
[338423977,1726629041921,-500.0,0.00019178,2]
[338423979,1726629041931,-500.0,0.00019178,2]
[338423981,1726629041941,-500.0,0.00019178,2]
[338423983,1726629041951,-500.0,0.00019178,2]
[338423985,1726629041961,-500.0,0.00019178,2]
[338423987,1726629041971,-541.13,0.00019178,2]
[338423989,1726629041982,-500.0,0.00019178,2]
[338423991,1726629041996,-500.0,0.00019178,2]
[338423993,1726629042007,-500.0,0.00019178,2]
[338423995,1726629042018,-339.63620813,0.00019178,2]
[338423997,1726629042028,-500.0,0.00019178,2]
[338423999,1726629042038,-500.0,0.00019178,2]
[338424001,1726629042049,-841.24,0.00019178,2]
[338424003,1726629042059,-639.04,0.00019178,2]
[338424006,1726629042069,-1126.18,0.00019178,2]
[338424008,1726629042081,-929.03,0.00019178,2]
[338424010,1726629042091,-500.0,0.00019178,2]
[338424012,1726629042102,-500.0,0.00019178,2]
[338424014,1726629042112,-500.0,0.00019178,2]
[338424016,1726629042123,-1135.06,0.00019178,2]
[338424018,1726629042133,-500.0,0.00019178,2]
[338424020,1726629042144,-500.0,0.00019178,2]
[338424022,1726629042154,-503.76259852,0.00019178,2]
[338424024,1726629042164,-1174.89,0.00019178,2]
[338424026,1726629042175,-500.0,0.00019178,2]
[338424028,1726629042185,-500.0,0.00019178,2]
[338424030,1726629042196,-500.0,0.00019178,2]
[338424032,1726629042207,-500.0,0.00019178,2]
[338424034,1726629042218,-754.25,0.00019178,2]
[338424036,1726629042229,-1094.37,0.00019178,2]
[338424038,1726629042240,-500.0,0.00019178,2]
[338424041,1726629042250,-500.0,0.00019178,2]
[338424043,1726629042262,-500.0,0.00019178,2]
[338424045,1726629042275,-500.0,0.00019178,2]
[338424047,1726629042287,-632.8,0.00019178,2]
[338424049,1726629042298,-500.0,0.00019178,2]
[338424052,1726629042309,-500.0,0.00019178,2]
[338424054,1726629042319,-500.0,0.00019178,2]
[338424056,1726629042330,-500.0,0.00019178,2]
[338424058,1726629042341,-500.0,0.00019178,2]
[338424060,1726629042352,-500.0,0.00019178,2]
[338424062,1726629042366,-500.0,0.00019178,2]
[338424064,1726629042376,-500.0,0.00019178,2]
[338424066,1726629042387,-500.0,0.00019178,2]
[338424069,1726629042399,-500.0,0.00019178,2]
[338424071,1726629042410,-500.0,0.00019178,2]
[338424073,1726629042421,-500.0,0.00019178,2]
[338424075,1726629042431,-500.0,0.00019178,2]
[338424077,1726629042445,-500.0,0.00019178,2]
[338424079,1726629042456,-500.0,0.00019178,2]
[338424081,1726629042467,-500.0,0.00019178,2]
[338424084,1726629042478,-500.0,0.00019178,2]
[338424086,1726629042490,-626.71542843,0.00019178,2]
[338424088,1726629042499,-223.49469264,0.00019178,2]
[338424090,1726629042509,-500.0,0.00019178,2]
[338424092,1726629042521,-500.0,0.00019178,2]
[338424094,1726629042532,-767.33,0.00019178,2]
[338424096,1726629042543,-1767.24,0.00019178,2]
[338424099,1726629042556,-1106.45,0.00019178,2]
[338424101,1726629042567,-500.0,0.00019178,2]
[338424103,1726629042579,-500.0,0.00019178,2]
[338424105,1726629042590,-500.0,0.00019178,2]
[338424107,1726629042601,-500.0,0.00019178,2]
[338424110,1726629042612,-500.0,0.00019178,2]
[338424112,1726629042623,-500.0,0.00019178,2]
[338424114,1726629042633,-544.73,0.00019178,2]
[338424116,1726629042645,-500.0,0.00019178,2]
[338424118,1726629042658,-227.97090615,0.00019178,2]
[338424121,1726629042671,-500.0,0.00019178,2]
[338424123,1726629042683,-500.0,0.00019178,2]
[338424125,1726629042695,-1286.82,0.00019178,2]
[338424127,1726629042706,-174.24022888,0.00019178,2]
[338424130,1726629042718,-500.0,0.00019178,2]
[338424132,1726629042727,-500.0,0.00019178,2]
[338424134,1726629042738,-1140.9,0.00019178,2]
[338424136,1726629042749,-500.0,0.00019178,2]
[338424138,1726629042759,-500.0,0.00019178,2]
[338424140,1726629042770,-500.0,0.00019178,2]
[338424142,1726629042780,-500.0,0.00019178,2]
[338424144,1726629042789,-500.0,0.00019178,2]
[338424146,1726629042799,-500.0,0.00019178,2]
[338424148,1726629042811,-500.0,0.00019178,2]
[338424150,1726629042822,-500.0,0.00019178,2]
[338424152,1726629042831,-500.0,0.00019178,2]
[338424154,1726629042841,-500.0,0.00019178,2]
[338424156,1726629042851,-596.58861169,0.00019178,2]
[338424158,1726629042862,-1053.81,0.00019178,2]
[338424160,1726629042873,-511.27479549,0.00019178,2]
[338424162,1726629042883,-500.0,0.00019178,2]
[338424164,1726629042894,-1692.13,0.00019178,2]
[338424166,1726629042904,-500.0,0.00019178,2]
[338424168,1726629042915,-844.42,0.00019178,2]
[338424170,1726629042926,-500.0,0.00019178,2]
[338424172,1726629042938,-500.0,0.00019178,2]
[338424175,1726629042950,-1487.88,0.00019178,2]
[338424177,1726629042961,-500.0,0.00019178,2]
[338424179,1726629042973,-500.0,0.00019178,2]
[338424181,1726629042983,-500.0,0.00019178,2]
[338424183,1726629042994,-500.0,0.00019178,2]
[338424185,1726629043005,-500.0,0.00019178,2]
[338424187,1726629043015,-2710.68,0.00019178,2]
[338424189,1726629043025,-500.0,0.00019178,2]
[338424191,1726629043036,-500.0,0.00019178,2]
[338424193,1726629043047,-500.0,0.00019178,2]
[338424195,1726629043058,-500.0,0.00019178,2]
[338424197,1726629043068,-500.0,0.00019178,2]
[338424199,1726629043079,-1292.27,0.00019178,2]
[338424201,1726629043089,-1927.65,0.00019178,2]
[338424204,1726629043102,-500.0,0.00019178,2]
[338424206,1726629043112,-1351.34,0.00019178,2]
[338424208,1726629043122,-500.0,0.00019178,2]
[338424210,1726629043133,-1541.64,0.00019178,2]
[338424212,1726629043143,-504.52455899,0.00019178,2]
[338424214,1726629043153,-500.0,0.00019178,2]
[338424216,1726629043164,-904.73,0.00019178,2]
[338424218,1726629043174,-500.0,0.00019178,2]
[338424220,1726629043184,-757.78,0.00019178,2]
[338424222,1726629043195,-509.12,0.00019178,2]
[338424224,1726629043206,-500.0,0.00019178,2]
[338424226,1726629043215,-500.0,0.00019178,2]
[338424228,1726629043228,-500.0,0.00019178,2]
[338424230,1726629043240,-518.81,0.00019178,2]
[338424232,1726629043250,-5342.0,0.00019178,2]
[338424258,1726629043260,-500.0,0.00019178,2]
[338424261,1726629043482,-524.04,0.00019178,2]
[338424264,1726629043496,-500.0,0.00019178,2]
[338424266,1726629043505,-798.38,0.00019178,2]
[338424268,1726629043516,-500.0,0.00019178,2]
[338424270,1726629043525,-500.0,0.00019178,2]
[338424272,1726629043534,-1079.14,0.00019178,2]
[338424274,1726629043544,-1079.14,0.00019178,2]
[338424276,1726629043553,-1079.14,0.00019178,2]
[338424278,1726629043565,-1079.14,0.00019178,2]
[338424280,1726629043575,-1079.14,0.00019178,2]
[338424282,1726629043585,-1079.14,0.00019178,2]
[338424284,1726629043595,-1079.14,0.00019178,2]
[338424286,1726629043606,-1079.14,0.00019178,2]
[338424288,1726629043616,-1079.14,0.00019178,2]
[338424290,1726629043626,-1079.14,0.00019178,2]
[338424293,1726629043637,-1079.14,0.00019178,2]
[338424295,1726629043647,-1079.14,0.00019178,2]
[338424297,1726629043657,-2339.12,0.00019178,2]
[338424299,1726629043666,-1079.14,0.00019178,2]
[338424301,1726629043676,-1079.14,0.00019178,2]
[338424303,1726629043686,-1079.14,0.00019178,2]
[338424305,1726629043695,-1079.14,0.00019178,2]
[338424307,1726629043706,-1079.14,0.00019178,2]
[338424309,1726629043717,-1079.14,0.00019178,2]
[338424311,1726629043726,-1079.14,0.00019178,2]
[338424313,1726629043737,-1079.14,0.00019178,2]
[338424315,1726629043750,-1079.14,0.00019178,2]
[338424317,1726629043759,-1079.14,0.00019178,2]
[338424319,1726629043769,-1079.14,0.00019178,2]
[338424321,1726629043778,-500.0,0.00019178,2]
[338424323,1726629043788,-1079.21861078,0.00019178,2]
[338424325,1726629043797,-500.0,0.00019178,2]
[338424327,1726629043807,-500.0,0.00019178,2]
[338424329,1726629043819,-500.0,0.00019178,2]
[338424331,1726629043829,-500.0,0.00019178,2]
[338424333,1726629043838,-500.0,0.00019178,2]
[338424335,1726629043848,-2455.13,0.00019178,2]
[338424337,1726629043859,-1915.74,0.00019178,2]
[338424339,1726629043870,-500.0,0.00019178,2]
[338424341,1726629043879,-500.0,0.00019178,2]
[338424343,1726629043888,-500.0,0.00019178,2]
[338424345,1726629043898,-500.0,0.00019178,2]
[338424347,1726629043907,-1805.08,0.00019178,2]
[338424349,1726629043917,-500.0,0.00019178,2]
[338424351,1726629043927,-500.0,0.00019178,2]
[338424353,1726629043937,-2012.79,0.00019178,2]
[338424355,1726629043947,-718.51,0.00019178,2]
[338424357,1726629043957,-500.0,0.00019178,2]
[338424359,1726629043967,-500.0,0.00019178,2]
[338424361,1726629043979,-500.0,0.00019178,2]
[338424364,1726629043993,-500.0,0.00019178,2]
[338424366,1726629044003,-1098.81,0.00019178,2]
[338424368,1726629044014,-500.0,0.00019178,2]
[338424370,1726629044026,-961.17,0.00019178,2]
[338424372,1726629044037,-500.0,0.00019178,2]
[338424374,1726629044047,-500.0,0.00019178,2]
[338424376,1726629044056,-500.0,0.00019178,2]
[338424378,1726629044066,-500.0,0.00019178,2]
[338424380,1726629044076,-874.9,0.00019178,2]
[338424382,1726629044085,-1275.52,0.00019178,2]
[338424384,1726629044096,-500.0,0.00019178,2]
[338424386,1726629044107,-595.79,0.00019178,2]
[338424388,1726629044119,-500.0,0.00019178,2]
[338424391,1726629044130,-998.63,0.00019178,2]
[338424393,1726629044139,-623.07,0.00019178,2]
[338424395,1726629044148,-1564.84,0.00019178,2]
[338424396,1726629044158,-1298.36,0.00019178,2]
[338424398,1726629044168,-500.0,0.00019178,2]
[338424400,1726629044178,-585.34213859,0.00019178,2]
[338424403,1726629044188,-500.0,0.00019178,2]
[338424405,1726629044200,-500.0,0.00019178,2]
[338424407,1726629044210,-515.64,0.00019178,2]
[338424409,1726629044219,-555.46,0.00019178,2]
[338424410,1726629044229,-500.0,0.00019178,2]
[338424411,1726629044240,-500.0,0.00019178,2]
[338424412,1726629044251,-551.7,0.00019178,2]
[338424413,1726629044260,-500.0,0.00019178,2]
[338424414,1726629044269,-766.51,0.00019178,2]
[338424415,1726629044279,-1116.38,0.00019178,2]
[338424416,1726629044291,-500.0,0.00019178,2]
[338424417,1726629044301,-500.0,0.00019178,2]
[338424418,1726629044310,-500.37600801,0.00019178,2]
[338424419,1726629044320,-500.0,0.00019178,2]
[338424420,1726629044330,-500.0,0.00019178,2]
[338424421,1726629044339,-505.49503684,0.00019178,2]
[338424422,1726629044349,-500.0,0.00019178,2]
[338424423,1726629044359,-568.68349003,0.00019178,2]
[338424424,1726629044368,-500.0,0.00019178,2]
[338424425,1726629044377,-500.0,0.00019178,2]
[338424426,1726629044386,-500.0,0.00019178,2]
[338424427,1726629044395,-500.0,0.00019178,2]
[338424428,1726629044405,-691.91,0.00019178,2]
[338424429,1726629044415,-500.0,0.00019178,2]
[338424430,1726629044424,-500.0,0.00019178,2]
[338424431,1726629044434,-580.78,0.00019178,2]
[338424433,1726629044443,-500.0,0.00019178,2]
[338424435,1726629044453,-500.0,0.00019178,2]
[338424437,1726629044462,-500.0,0.00019178,2]
[338424439,1726629044471,-572.3,0.00019178,2]
[338424441,1726629044481,-626.6640944,0.00019178,2]
[338424443,1726629044491,-828.78,0.00019178,2]
[338424445,1726629044500,-500.0,0.00019178,2]
[338424447,1726629044510,-500.0,0.00019178,2]
[338424449,1726629044520,-538.05000947,0.00019178,2]
[338424451,1726629044529,-500.0,0.00019178,2]
[338424453,1726629044539,-500.0,0.00019178,2]
[338424455,1726629044548,-500.0,0.00019178,2]
[338424457,1726629044557,-500.0,0.00019178,2]
[338424459,1726629044566,-500.0,0.00019178,2]
[338424461,1726629044575,-500.0,0.00019178,2]
[338424463,1726629044584,-2219.32,0.00019178,2]
[338424465,1726629044593,-500.0,0.00019178,2]
[338424467,1726629044602,-627.98,0.00019178,2]
[338424469,1726629044611,-500.0,0.00019178,2]
[338424471,1726629044621,-500.0,0.00019178,2]
[338424473,1726629044630,-500.0,0.00019178,2]
[338424475,1726629044639,-500.0,0.00019178,2]
[338424476,1726629044649,-500.0,0.00019178,2]
[338424478,1726629044658,-500.0,0.00019178,2]
[338424480,1726629044667,-833.97,0.00019178,2]
[338424482,1726629044676,-1273.88,0.00019178,2]
[338424484,1726629044686,-500.0,0.00019178,2]
[338424486,1726629044695,-500.0,0.00019178,2]
[338424488,1726629044705,-500.0,0.00019178,2]
[338424490,1726629044714,-500.0,0.00019178,2]
[338424492,1726629044723,-913.24,0.00019178,2]
[338424494,1726629044733,-1168.78,0.00019178,2]
[338424496,1726629044743,-500.0,0.00019178,2]
[338424498,1726629044752,-500.0,0.00019178,2]
[338424500,1726629044764,-602.97,0.00019178,2]
[338424503,1726629044775,-500.0,0.00019178,2]
[338424505,1726629044786,-1671.82,0.00019178,2]
[338424507,1726629044797,-500.0,0.00019178,2]
[338424509,1726629044810,-980.86,0.00019178,2]
[338424511,1726629044823,-547.37,0.00019178,2]
[338424514,1726629044834,-500.0,0.00019178,2]
[338424516,1726629044843,-1313.45,0.00019178,2]
[338424517,1726629044852,-1256.22,0.00019178,2]
[338424519,1726629044862,-517.05,0.00019178,2]
[338424521,1726629044870,-500.0,0.00019178,2]
[338424524,1726629044881,-1374.56,0.00019178,2]
[338424526,1726629044892,-1580.75,0.00019178,2]
[338424528,1726629044903,-576.82,0.00019178,2]
[338424530,1726629044915,-1132.76,0.00019178,2]
[338424531,1726629044925,-500.0,0.00019178,2]
[338424532,1726629044935,-686.05,0.00019178,2]
[338424533,1726629044946,-1013.4,0.00019178,2]
[338424534,1726629044958,-500.0,0.00019178,2]
[338424535,1726629044970,-500.0,0.00019178,2]
[338424536,1726629044979,-3729.91,0.00019178,2]
[338424537,1726629044990,-500.0,0.00019178,2]
[338424538,1726629045000,-500.0,0.00019178,2]
[338424539,1726629045010,-3411.42,0.00019178,2]
[338424540,1726629045020,-641.07,0.00019178,2]
[338424541,1726629045032,-736.46,0.00019178,2]
[338424542,1726629045041,-659.55,0.00019178,2]
[338424543,1726629045052,-500.0,0.00019178,2]
[338424544,1726629045061,-500.0,0.00019178,2]
[338424545,1726629045071,-213.87774882,0.00019178,2]
[338424546,1726629045080,-1076.98,0.00019178,2]
[338424547,1726629045089,-500.0,0.00019178,2]
[338424548,1726629045098,-1043.4,0.00019178,2]
[338424549,1726629045108,-1126.29,0.00019178,2]
[338424550,1726629045117,-500.0,0.00019178,2]
[338424551,1726629045126,-833.6,0.00019178,2]
[338424552,1726629045135,-500.0,0.00019178,2]
[338424553,1726629045145,-1057.82,0.00019178,2]
[338424554,1726629045154,-500.0,0.00019178,2]
[338424555,1726629045163,-500.0,0.00019178,2]
[338424556,1726629045173,-601.79,0.00019178,2]
[338424557,1726629045183,-500.0,0.00019178,2]
[338424558,1726629045192,-1110.62,0.00019178,2]
[338424559,1726629045201,-1552.99,0.00019178,2]
[338424560,1726629045210,-520.83,0.00019178,2]
[338424561,1726629045220,-500.0,0.00019178,2]
[338424562,1726629045229,-500.0,0.00019178,2]
[338424563,1726629045239,-500.0,0.00019178,2]
[338424564,1726629045248,-500.0,0.00019178,2]
[338424565,1726629045258,-500.0,0.00019178,2]
[338424566,1726629045268,-1087.68,0.00019178,2]
[338424567,1726629045278,-500.0,0.00019178,2]
[338424568,1726629045287,-500.0,0.00019178,2]
[338424569,1726629045297,-838.5,0.00019178,2]
[338424570,1726629045306,-500.0,0.00019178,2]
[338424571,1726629045315,-500.0,0.00019178,2]
[338424572,1726629045324,-945.83,0.00019178,2]
[338424573,1726629045334,-2808.63,0.00019178,2]
[338424574,1726629045343,-216.19177465,0.00019178,2]
[338424575,1726629045352,-500.0,0.00019178,2]
[338424576,1726629045361,-2230.92,0.00019178,2]
[338424577,1726629045370,-1374.12,0.00019178,2]
[338424578,1726629045380,-503.0,0.00019178,2]
[338424579,1726629045389,-500.0,0.00019178,2]
[338424580,1726629045399,-500.0,0.00019178,2]
[338424581,1726629045408,-1257.96,0.00019178,2]
[338424582,1726629045418,-500.0,0.00019178,2]
[338424583,1726629045429,-1116.61,0.00019178,2]
[338424584,1726629045439,-518.52633962,0.00019178,2]
[338424585,1726629045449,-486.49087343,0.00019178,2]
[338424586,1726629045460,-621.35,0.00019178,2]
[338424587,1726629045470,-1483.11,0.00019178,2]
[338424588,1726629045481,-500.0,0.00019178,2]
[338424589,1726629045496,-500.0,0.00019178,2]
[338424590,1726629045507,-908.74,0.00019178,2]
[338424591,1726629045517,-500.0,0.00019178,2]
[338424592,1726629045528,-500.0,0.00019178,2]
[338424593,1726629045538,-1060.94,0.00019178,2]
[338424594,1726629045549,-714.79,0.00019178,2]
[338424595,1726629045560,-502.92885781,0.00019178,2]
[338424596,1726629045570,-500.0,0.00019178,2]
[338424597,1726629045582,-617.98,0.00019178,2]
[338424598,1726629045594,-500.0,0.00019178,2]
[338424599,1726629045605,-500.0,0.00019178,2]
[338424600,1726629045614,-500.0,0.00019178,2]
[338424601,1726629045624,-500.0,0.00019178,2]
[338424602,1726629045635,-530.32,0.00019178,2]
[338424604,1726629045646,-730.51,0.00019178,2]
[338424605,1726629045655,-1046.64,0.00019178,2]
[338424606,1726629045666,-1493.4,0.00019178,2]
[338424607,1726629045678,-1254.69,0.00019178,2]
[338424608,1726629045690,-500.0,0.00019178,2]
[338424610,1726629045702,-1441.26,0.00019178,2]
[338424611,1726629045711,-1441.26,0.00019178,2]
[338424612,1726629045722,-500.0,0.00019178,2]
[338424613,1726629045732,-575.88359216,0.00019178,2]
[338424614,1726629045743,-500.0,0.00019178,2]
[338424615,1726629045752,-500.0,0.00019178,2]
[338424616,1726629045762,-500.0,0.00019178,2]
[338424617,1726629045772,-1441.26,0.00019178,2]
[338424618,1726629045782,-1441.26,0.00019178,2]
[338424619,1726629045792,-1441.26,0.00019178,2]
[338424620,1726629045802,-1441.26,0.00019178,2]
[338424621,1726629045814,-1441.26,0.00019178,2]
[338424622,1726629045825,-1441.26,0.00019178,2]
[338424623,1726629045834,-500.0,0.00019178,2]
[338424624,1726629045844,-2361.38,0.00019178,2]